Cogmind - Beta 11 @@@ ROGUE MODE // 2022.03.20 @ 13:22:26 Player: Infomantis Result: Destroyed by B-75 Beast with Heavy Machine Gun Performance ------------- Evolutions (4) 2000 Regions Visited (13) 2600 Robots Destroyed (85) 425 Value Destroyed (3801) 3801 Prototype IDs (0) 0 Alien Tech Used (0) 0 Bonus (2528) 2528 TOTAL SCORE: 11354 Bonus ------- Pacifist 200 High Alert Combat Kills 321 Follower Combat Kills 207 Entered Garrisons 800 Used RIF Installer 1000 Cogmind --------- Core Integrity 0/850 Matter 285/300 Energy 78/100 System Corruption 0% Temperature Warm (135) Movement Core (50) Location -6/Garrison Parts ------- > --- POWER (1) -------- (None) > --- PROPULSION (4) --- (None) > --- UTILITY (7) ------ Relay Coupler [Sentry] (25) > --- WEAPON (3) ------- (None) > --- INVENTORY (5) ---- Medium Storage Unit Improved Sensor Array Dynamic Insulation System System Restoration Module Datajack Peak State ------------ > --- POWER ------------ Light Angular Momentum Engine > --- PROPULSION ------- Carbon-fiber Leg Carbon-fiber Leg Carbon-fiber Leg Armored Leg > --- UTILITY ---------- Advanced Heat Sink Coolant Injector Medium Storage Unit Improved Targeting Computer Weapon Cycler Relay Coupler [Sentry] Relay Coupler [Specialist] > --- WEAPON ----------- Heavy Laser Heavy Plasma Cannon Heavy Plasma Cannon > --- INVENTORY -------- Light Angular Momentum Engine Improved Sensor Array Relay Coupler [Swarmer] Dynamic Insulation System System Restoration Module Thermic Laser Ion Cannon Rocket Launcher Datajack Datajack [Rating: 61] Favorites ----------- Power Ion Engine Engine Ion Engine Power Core Nuclear Core Propulsion Aluminum Leg Treads Light Treads Leg Aluminum Leg Wheel Armored Huge Wheel Flight Unit VTOL Module Utility Small Storage Unit Device Improved Heat Sink Storage Small Storage Unit Processor Targeting Computer Hackware Relay Coupler [NC] Protection Hardened Medium Armor Plating Weapon Heavy Plasma Cannon Energy Gun Beam Rifle Energy Cannon Heavy Plasma Cannon Ballistic Gun Autogun Launcher Rocket Launcher Special Melee Weapon Datajack Build | -11 -10 -10 -9 -9 -9 -9 -7 -7 -7 -6 -6 -6 -6 ------- Run | Scr Mat Min Mat Sto Gar Rec Fac Gar Fac Fac Gar Fac Gar Slots Evolved 8 | . . . 2 . . . 4 . . 2 . . . Power . | . . . . . . . . . . . . . . Propulsion 2 | . . . 1 . . . 1 . . . . . . Utility 5 | . . . 1 . . . 2 . . 2 . . . Weapon 1 | . . . . . . . 1 . . . . . . Parts Attached 121 | 7 1 . 5 11 11 1 3 15 9 10 16 9 23 Power 11 | 1 . . . 1 2 . . 3 . 1 . 1 2 Engine 7 | 1 . . . 1 2 . . . . . . 1 2 Core 4 | . . . . . . . . 3 . 1 . . . Reactor . | . . . . . . . . . . . . . . Propulsion 37 | 2 . . 2 4 5 . 1 3 4 2 2 4 8 Treads 6 | . . . 1 1 1 . . 2 . 1 . . . Leg 23 | 2 . . . 3 4 . . 1 2 . 2 2 7 Wheel 7 | . . . 1 . . . 1 . 2 1 . 2 . Hover . | . . . . . . . . . . . . . . Flight 1 | . . . . . . . . . . . . . 1 Utility 29 | 1 1 . 2 2 2 1 2 3 3 2 4 1 5 Device 12 | . . . 1 1 1 1 . 2 . 2 2 . 2 Storage 2 | 1 . . . . . . 1 . . . . . . Processor 4 | . 1 . . 1 . . 1 . 1 . . . . Hackware 8 | . . . . . 1 . . . 1 . 2 1 3 Protection 3 | . . . 1 . . . . 1 1 . . . . Artifact . | . . . . . . . . . . . . . . Weapon 44 | 3 . . 1 4 2 . . 6 2 5 10 3 8 Energy Gun 12 | 2 . . 1 1 1 . . 2 1 1 . . 3 Energy Cannon 10 | . . . . 2 1 . . . . . 3 3 1 Ballistic Gun 14 | 1 . . . . . . . 4 . 4 4 . 1 Ballistic Cannon . | . . . . . . . . . . . . . . Launcher 3 | . . . . 1 . . . . . . 1 . 1 Special Weapon . | . . . . . . . . . . . . . . Impact Weapon . | . . . . . . . . . . . . . . Slashing Weapon . | . . . . . . . . . . . . . . Piercing Weapon . | . . . . . . . . . . . . . . Special Melee Weapon 5 | . . . . . . . . . 1 . 2 . 2 Unidentified Prototypes . | . . . . . . . . . . . . . . Parts Lost 49 | . . . . 2 1 . . 5 3 . 7 2 29 Power 4 | . . . . . . . . 1 . . 1 . 2 Propulsion 21 | . . . . 2 1 . . . 3 . 4 1 10 Utility 11 | . . . . . . . . 2 . . 2 . 7 Weapon 13 | . . . . . . . . 2 . . . 1 10 Highest Loss Streak 17 | . . . . 2 1 . . 3 3 . 4 2 17 To Critical Strikes 1 | . . . . . 1 . . . . . . . . Average Slot Usage (%) 93 | . 95 100 99 96 99 100 79 86 93 92 90 85 83 Engine 7 | . 14 14 11 11 11 11 7 1 . . . 6 5 Core 1 | . . . . . . . . 5 7 6 5 . . Treads 5 | . . . 4 13 11 11 2 6 7 3 6 . . Leg 16 | . 28 28 22 16 21 22 15 8 7 . 1 14 18 Wheel 3 | . . . 6 . . . 3 7 10 15 9 1 . Device 11 | . . . 10 11 11 11 7 6 7 19 16 20 16 Storage 9 | . 14 14 11 11 11 11 14 8 7 6 6 6 5 Processor 10 | . 9 14 11 11 11 11 11 15 12 6 6 6 5 Hackware 4 | . . . . . . . . . 1 6 12 13 11 Protection 1 | . . . . . . . . 2 5 6 2 . . Energy Gun 8 | . 14 14 11 7 11 11 7 10 7 6 4 . 7 Energy Cannon 6 | . . . . 5 11 11 7 2 . . 5 13 8 Ballistic Gun 5 | . 14 14 11 7 . . . 7 12 12 8 1 . Naked Turns . | . . . . . . . . . . . . . . Heaviest Build 50 | 14 14 14 15 18 18 16 26 31 36 45 46 50 50 Greatest Support 66 | 20 20 20 20 40 23 20 28 28 32 60 44 51 66 Greatest Overweight (x) 11 | 2 . . . 1 . . 1 1 2 1 11 4 2 Average Overweight (x) . | . . . . . . . . . . . . 1 . Largest Inventory Capacity 10 | 8 8 8 8 8 8 8 10 10 10 10 10 10 10 Average Capacity 8 | 7 8 8 8 8 8 8 9 10 10 10 10 10 9 Most Carried 10 | 6 8 8 8 8 8 8 10 10 10 10 10 10 10 Average Carried 8 | 2 7 7 7 7 7 8 9 9 9 9 9 8 9 Final Capacity 10 | 8 8 8 8 8 8 8 10 10 10 10 10 10 5 Final Carried 10 | 6 8 8 8 8 8 8 10 10 10 10 9 10 5 Class Distribution -------------------- 51% | Scavenger-Mutant 25% | Mutant 17% | Scavenger-Gunner 5% | Gunner Dominant Class ---------------- Mutant | -10/Materials Mutant | -10/Mines Mutant | -9/Materials Mutant | -9/Storage Scavenger-Mutant | -9/Garrison Scavenger-Mutant | -9/Recycling Scavenger-Mutant | -7/Factory Scavenger-Gunner | -7/Garrison Scavenger-Gunner | -7/Factory Gunner | -6/Factory Gunner | -6/Garrison Scavenger-Mutant | -6/Factory Scavenger-Mutant | -6/Garrison Resources | -11 -10 -10 -9 -9 -9 -9 -7 -7 -7 -6 -6 -6 -6 ----------- Run | Scr Mat Min Mat Sto Gar Rec Fac Gar Fac Fac Gar Fac Gar Matter Collected 1817 | 248 . 53 92 117 141 19 . 195 130 152 354 119 197 Remotely . | . . . . . . . . . . . . . . Salvage Created 3556 | . . . 77 288 663 144 . 480 281 . 650 338 635 Parts 149 | . . . 4 20 22 22 . 29 11 . 24 5 12 Haulers Intercepted . | . . . . . . . . . . . . . . Recyclers Shooed 1 | . . . . 1 . . . . . . . . . Parts Field Recycled . | . . . . . . . . . . . . . . Retrieved Matter . | . . . . . . . . . . . . . . Parts Self-Destructed . | . . . . . . . . . . . . . . Prevented . | . . . . . . . . . . . . . . Kills | -11 -10 -10 -9 -9 -9 -9 -7 -7 -7 -6 -6 -6 -6 ------- Run | Scr Mat Min Mat Sto Gar Rec Fac Gar Fac Fac Gar Fac Gar Combat Hostiles Destroyed 79 | . . . 1 6 15 8 . 16 3 . 14 4 12 Guns 34 | . . . 1 3 4 1 . 13 3 . 9 . . Cannons 34 | . . . . 3 8 7 . 3 . . 2 4 7 AOE 5 | . . . . . . . . . . . 3 . 2 Classes Destroyed 11 | . . . 2 1 3 2 . . . . 2 1 . Worker 2 | . . . . . . . . . . . . 2 . Recycler 2 | . . . . . . 1 . . 1 . . . . Drone 8 | . . . . . . 8 . . . . . . . Watcher 2 | . . . 1 1 . . . . . . . . . Swarmer 20 | . . . . . 3 . . 13 . . 3 . 1 Grunt 30 | . . . . 3 5 . . 2 . . 9 2 9 Brawler 3 | . . . . . 1 . . . . . . 2 . Duelist 3 | . . . . . 1 . . . . . . . 2 Sentry 13 | . . . 1 3 5 . . 1 3 . . . . Programmer 1 | . . . . . . . . . . . 1 . . Behemoth 1 | . . . . . . . . . . . 1 . . Best Kill Streak 9 | . . . 1 5 7 2 . 9 2 . 8 3 4 Combat Bots Only 9 | . . . 1 2 7 2 . 9 1 . 8 3 4 Max Kills in Single Turn 2 | . . . 1 1 1 1 . 2 1 . 2 1 2 Gunslinging 1 | . . . . . . . . 1 . . . . . Exploded 2 | . . . . . . . . . . . 2 . 2 Melee . | . . . . . . . . . . . . . . Uniques/NPCs Destroyed . | . . . . . . . . . . . . . . Combat | -11 -10 -10 -9 -9 -9 -9 -7 -7 -7 -6 -6 -6 -6 -------- Run | Scr Mat Min Mat Sto Gar Rec Fac Gar Fac Fac Gar Fac Gar Damage Taken 7752 | . . 64 88 522 618 . . 1469 478 . 1783 273 2457 Core 1364 | . . 43 . 79 86 . . 246 43 . 333 13 521 Absorbed by Shields 26 | . . . . . 26 . . . . . . . . Core Remaining (%) 74 | 100 . 82 . . . 58 . . 58 . . . . Volleys Fired 276 | . 3 4 14 23 57 23 . 31 15 . 38 20 48 Largest 3 | . 2 2 2 2 2 2 . 3 3 . 3 2 3 Hottest 249 | . 60 60 60 124 124 124 . 126 126 . 185 180 249 Shots Fired 596 | . 6 8 28 44 114 46 . 63 38 . 110 37 102 Gun 381 | . 6 8 28 31 57 23 . 52 38 . 88 . 50 Cannon 210 | . . . . 13 57 23 . 11 . . 20 37 49 Launcher 5 | . . . . . . . . . . . 2 . 3 Special . | . . . . . . . . . . . . . . Kinetic 145 | . 3 4 14 19 . . . 18 30 . 55 . 2 Thermal 439 | . . . 14 25 114 46 . 45 8 . 53 37 97 Explosive 5 | . . . . . . . . . . . 2 . 3 Electromagnetic 7 | . 3 4 . . . . . . . . . . . Robot Hit Streak 28 | . 1 4 5 7 18 3 . 11 16 . 12 18 28 Robot Miss Streak 7 | . 5 1 3 5 3 7 . 6 1 . 4 2 3 Penetration Max 1 | . . . . . . . . . . . 1 . . Secondary Targets 6 | . . . . . . . . 5 . . 1 . . Max Gunslinging Chain 1 | . . . . . . . . 1 . . 1 . . Shots Hit Robots 433 | . 1 6 16 28 84 13 . 51 36 . 85 29 84 Core Hits 172 | . . 2 3 10 20 11 . 33 11 . 41 13 28 Critical Kills 3 | . . . 1 . . . . . . . 1 . 1 Critical Parts Destroyed 1 | . . . . . . . . . . . 1 . . Critical Strikes 17 | . . . 1 . 8 . . 3 . . 2 . 3 Burn 13 | . . . . . 8 . . 3 . . . . 2 Meltdown 1 | . . . . . . . . . . . . . 1 Destroy 3 | . . . 1 . . . . . . . 2 . . Melee Attacks 5 | . . . . . . . . . 2 . 2 . 1 Impact . | . . . . . . . . . . . . . . Slashing . | . . . . . . . . . . . . . . Piercing . | . . . . . . . . . . . . . . Sneak Attacks 2 | . . . . . . . . . 2 . . . . Combat Hostiles . | . . . . . . . . . . . . . . Follow-up Attacks . | . . . . . . . . . . . . . . Damage Inflicted 9676 | . 11 82 199 424 1452 366 . 834 550 . 2343 932 2483 Guns 4944 | . 11 82 199 260 667 58 . 670 550 . 1669 . 778 Cannons 3956 | . . . . 161 785 266 . 164 . . 351 923 1306 Explosions 722 | . . . . . . . . . . . 323 . 399 Melee . | . . . . . . . . . . . . . . Ramming 54 | . . . . 3 . 42 . . . . . 9 . Kinetic 1876 | . 11 41 122 164 . . . 199 363 . 944 . 32 Thermal 6983 | . . . 77 257 1452 324 . 635 187 . 1076 923 2052 Explosive 722 | . . . . . . . . . . . 323 . 399 Electromagnetic 41 | . . 41 . . . . . . . . . . . Impact . | . . . . . . . . . . . . . . Slashing . | . . . . . . . . . . . . . . Piercing . | . . . . . . . . . . . . . . Highest Corruption . | . . . . . . . . . . . . . . Average Corruption . | . . . . . . . . . . . . . . Corruption Purged . | . . . . . . . . . . . . . . Corruption Blocked . | . . . . . . . . . . . . . . Overload Shots . | . . . . . . . . . . . . . . Overflow Damage 40 | . . . . . 13 . . . . . . . 27 Projectiles 28 | . . . . . 13 . . . . . . . 15 Explosions 12 | . . . . . . . . . . . . . 12 Melee . | . . . . . . . . . . . . . . Knockbacks . | . . . . . . . . . . . . . . Impact . | . . . . . . . . . . . . . . Kinetic . | . . . . . . . . . . . . . . Secondary . | . . . . . . . . . . . . . . Self-Inflicted Damage 65 | . . . . . . . . . . . . . 65 Shots 3 | . . . . . . . . . . . . . 3 Rammed 1 | . . . . 1 . . . . . . . . . Targets Rammed 10 | . . . . 1 . 8 . . . . . 1 . Kicked 9 | . . . . . . 8 . . . . . 1 . Crushed . | . . . . . . . . . . . . . . Highest Temperature 365 | . . 30 6 213 176 162 . 221 132 . 324 199 365 Average Temperature 83 | . . 18 4 67 69 48 . 52 50 . 123 120 125 Received Heat Transfer 2014 | . . 36 18 234 180 . . 105 90 . 483 76 792 Effects 2 | . . . . . . . . . . . 1 . 1 Energy Bleed 1 | . . . . . . . . . . . . . 1 Interference 1 | . . . . . . . . . . . 1 . . Siege Activations . | . . . . . . . . . . . . . . Robots Corrupted . | . . . . . . . . . . . . . . Combat Hostiles . | . . . . . . . . . . . . . . Parts Fried . | . . . . . . . . . . . . . . Impact Corruptions . | . . . . . . . . . . . . . . Robots Melted 6 | . . . . . 3 . . . . . . . 3 Combat Hostiles 6 | . . . . . 3 . . . . . . . 3 Parts Melted 37 | . . . 2 . 13 . . 2 2 . 4 4 10 Heat Transferred 14009 | . . . 175 520 3700 629 . 1554 425 . 1830 1450 3726 Parts Sabotaged . | . . . . . . . . . . . . . . Parts Stolen . | . . . . . . . . . . . . . . Parts Stripped . | . . . . . . . . . . . . . . Power Chain Reactions . | . . . . . . . . . . . . . . Missiles Intercepted . | . . . . . . . . . . . . . . Alert | -11 -10 -10 -9 -9 -9 -9 -7 -7 -7 -6 -6 -6 -6 ------- Run | Scr Mat Min Mat Sto Gar Rec Fac Gar Fac Fac Gar Fac Gar Peak Influence 1019 | . 15 63 182 280 552 275 928 1019 673 158 539 370 293 Initial 928 | . . 5 . 76 87 248 928 649 534 158 110 259 133 Average 291 | . 7 12 112 164 292 150 928 832 569 158 368 268 234 Maximum Alert Level 3 | . . . . 1 2 1 3 3 2 . 2 1 1 Low Security (%) 46 | 100 100 100 100 72 46 67 . . . 100 15 24 18 Level 1 25 | . . . . 27 7 32 . . 9 . 28 75 81 Level 2 19 | . . . . . 45 . . 22 90 . 55 . . Level 3 7 | . . . . . . . 100 77 . . . . . Level 4 . | . . . . . . . . . . . . . . Level 5 . | . . . . . . . . . . . . . . High Security . | . . . . . . . . . . . . . . Max Security . | . . . . . . . . . . . . . . Squads Dispatched 6 | . 1 . . 3 . . . . 1 . . 1 . Investigation 1 | . . . . . . . . . 1 . . . . Extermination . | . . . . . . . . . . . . . . Reinforcement 2 | . 1 . . 1 . . . . . . . . . Assault 1 | . . . . . . . . . . . . 1 . Garrison 2 | . . . . 2 . . . . . . . . . Intercept . | . . . . . . . . . . . . . . Searches Triggered 1 | . . . . . . . . . 1 . . . . Construction Impeded . | . . . . . . . . . . . . . . Haulers Reinforced . | . . . . . . . . . . . . . . Active Scanning Responses . | . . . . . . . . . . . . . . Cargo Convoy Interrupts . | . . . . . . . . . . . . . . Stealth | -11 -10 -10 -9 -9 -9 -9 -7 -7 -7 -6 -6 -6 -6 --------- Run | Scr Mat Min Mat Sto Gar Rec Fac Gar Fac Fac Gar Fac Gar Distress Signals 3 | . . . 1 2 . . . . . . . . . Communications Jammed . | . . . . . . . . . . . . . . Distress Signals . | . . . . . . . . . . . . . . Times Spotted 136 | . 2 2 11 10 16 20 . 20 5 . 23 10 17 Peak Tracking Total 11 | . 3 2 5 4 8 5 . 11 2 . 6 5 6 Tactical Retreats 5 | . . . 1 . . . . 1 . . 2 1 . Traps | -11 -10 -10 -9 -9 -9 -9 -7 -7 -7 -6 -6 -6 -6 ------- Run | Scr Mat Min Mat Sto Gar Rec Fac Gar Fac Fac Gar Fac Gar Traps Triggered 13 | . . . . . 2 . . 1 . . 5 2 3 Indirectly . | . . . . . . . . . . . . . . Trap Hack Attempts . | . . . . . . . . . . . . . . Triggered . | . . . . . . . . . . . . . . Disarmed . | . . . . . . . . . . . . . . Reprogrammed . | . . . . . . . . . . . . . . Reused . | . . . . . . . . . . . . . . Traps Extracted . | . . . . . . . . . . . . . . Installed . | . . . . . . . . . . . . . . Triggered . | . . . . . . . . . . . . . . Machines | -11 -10 -10 -9 -9 -9 -9 -7 -7 -7 -6 -6 -6 -6 ---------- Run | Scr Mat Min Mat Sto Gar Rec Fac Gar Fac Fac Gar Fac Gar Machines Disabled 5 | . . . . . 1 1 . 1 . . 1 . 1 Max in Single Turn 1 | . . . . . 1 1 . 1 . . 1 . 1 Garrison Access 1 | . . . . . . . . . . . . 1 . Garrison Relay 4 | . . . . . 1 . . 1 . . 1 . 1 Machines Sabotaged . | . . . . . . . . . . . . . . Garrisons Compromised . | . . . . . . . . . . . . . . Overloaded Fab Kills . | . . . . . . . . . . . . . . Hacking | -11 -10 -10 -9 -9 -9 -9 -7 -7 -7 -6 -6 -6 -6 --------- Run | Scr Mat Min Mat Sto Gar Rec Fac Gar Fac Fac Gar Fac Gar Machines Accessed 20 | . . . 1 4 . 6 2 . 2 2 . 3 . Terminals 13 | . . . 1 2 . 5 . . 2 1 . 2 . Fabricators . | . . . . . . . . . . . . . . Repair Stations . | . . . . . . . . . . . . . . Recycling Units 3 | . . . . 1 . 1 1 . . . . . . Scanalyzers . | . . . . . . . . . . . . . . Garrison Access 4 | . . . . 1 . . 1 . . 1 . 1 . Total Hacks 47 | . . . 2 9 . 17 6 . 4 3 . 6 . Successful 18 | . . . 1 4 . 6 2 . 1 2 . 2 . Failed 29 | . . . 1 5 . 11 4 . 3 1 . 4 . Catastrophic 6 | . . . 1 1 . 1 . . . 1 . 2 . Database Lockouts . | . . . . . . . . . . . . . . Manual 18 | . . . 1 5 . 6 5 . 1 . . . . Terminals 34 | . . . 2 6 . 16 . . 4 1 . 5 . Fabricators . | . . . . . . . . . . . . . . Repair Stations . | . . . . . . . . . . . . . . Recycling Units 8 | . . . . 2 . 1 5 . . . . . . Scanalyzers . | . . . . . . . . . . . . . . Garrison Access 5 | . . . . 1 . . 1 . . 2 . 1 . Terminal Hacks 11 | . . . 1 3 . 5 . . 1 . . 1 . Record 1 | . . . . . . . . . . . . 1 . Branch Access Points 1 | . . . . . . 1 . . . . . . . Terminal Index 1 | . . . . . . 1 . . . . . . . Alert Level 1 | . . . . 1 . . . . . . . . . Unreport Threat 2 | . . . . 1 . 1 . . . . . . . Locate Traps 1 | . . . . 1 . . . . . . . . . Dispatch Records 1 | . . . . . . . . . 1 . . . . Registered Components 1 | . . . 1 . . . . . . . . . . Zone Layout 2 | . . . . . . 2 . . . . . . . Fabricator Hacks . | . . . . . . . . . . . . . . Repair Station Hacks . | . . . . . . . . . . . . . . Recycling Unit Hacks 1 | . . . . . . 1 . . . . . . . Report Inventory 1 | . . . . . . 1 . . . . . . . Scanalyzer . | . . . . . . . . . . . . . . Garrison Access Hacks 5 | . . . . 1 . . 1 . . 2 . 1 . Unlock Access 4 | . . . . 1 . . 1 . . 1 . 1 . Coupler Status 1 | . . . . . . . . . . 1 . . . Unauthorized Hacks 1 | . . . . . . . 1 . . . . . . Terminals . | . . . . . . . . . . . . . . Fabricators . | . . . . . . . . . . . . . . Repair Stations . | . . . . . . . . . . . . . . Recycling Units 1 | . . . . . . . 1 . . . . . . Monitor 1 | . . . . . . . 1 . . . . . . Scanalyzers . | . . . . . . . . . . . . . . Garrison Access . | . . . . . . . . . . . . . . Data Cores Recovered . | . . . . . . . . . . . . . . Used . | . . . . . . . . . . . . . . Hacking Detections 17 | . . . 1 3 . 4 2 . 2 2 . 3 . Full Trace Events 1 | . . . . . . . . . 1 . . . . Feedback Events . | . . . . . . . . . . . . . . Feedback Blocked . | . . . . . . . . . . . . . . Robot Schematics Acquired . | . . . . . . . . . . . . . . Robots Built . | . . . . . . . . . . . . . . Authchips . | . . . . . . . . . . . . . . Time . | . . . . . . . . . . . . . . Total Robot Build Rating . | . . . . . . . . . . . . . . Part Schematics Acquired . | . . . . . . . . . . . . . . Parts Built . | . . . . . . . . . . . . . . Authchips . | . . . . . . . . . . . . . . Time . | . . . . . . . . . . . . . . Total Part Build Rating . | . . . . . . . . . . . . . . Parts Repaired . | . . . . . . . . . . . . . . Time . | . . . . . . . . . . . . . . Parts Recycled . | . . . . . . . . . . . . . . Recycled Matter . | . . . . . . . . . . . . . . Retrieved Matter . | . . . . . . . . . . . . . . Retrieved Components . | . . . . . . . . . . . . . . Parts Scanalyzed . | . . . . . . . . . . . . . . Part Schematics Acquired . | . . . . . . . . . . . . . . Parts Damaged . | . . . . . . . . . . . . . . Bothacking | -11 -10 -10 -9 -9 -9 -9 -7 -7 -7 -6 -6 -6 -6 ------------ Run | Scr Mat Min Mat Sto Gar Rec Fac Gar Fac Fac Gar Fac Gar Used RIF Installer 2 | . . . . . 1 . . 1 . . . . . Command Fork 1 | . . . . . . . . 1 . . . . . Robots Hacked 4 | . . . . . . . . . 1 . 2 . 1 Non-combat 1 | . . . . . . . . . 1 . . . . Combat 3 | . . . . . . . . . . . 2 . 1 Robot Hacks Applied 4 | . . . . . . . . . 1 . 2 . 1 start_evac 1 | . . . . . . . . . 1 . . . . streamctrl_high 3 | . . . . . . . . . . . 2 . 1 Relay Couplers Released 18 | . . . . . 4 . . 5 . . 3 3 3 Machine Destruction 18 | . . . . . 4 . . 5 . . 3 3 3 Attached 8 | . . . . . 1 . . . 1 . 2 1 3 Fabnet Peak Effective % . | . . . . . . . . . . . . . . Robots Rewired . | . . . . . . . . . . . . . . Allies Hacked . | . . . . . . . . . . . . . . Hacks Repelled . | . . . . . . . . . . . . . . Allies | -11 -10 -10 -9 -9 -9 -9 -7 -7 -7 -6 -6 -6 -6 -------- Run | Scr Mat Min Mat Sto Gar Rec Fac Gar Fac Fac Gar Fac Gar Total Allies 6 | . . 3 . . . . . . . . 2 . 1 Largest Group 3 | . . 3 3 . . . . . . . 2 . 1 Highest-Rated Group 64 | . . 40 40 . . . . . . . 64 . 12 Highest-Rated Ally 32 | . . 16 16 . . . . . . . 32 . 12 Total Orders . | . . . . . . . . . . . . . . Ally Attacks 65 | . . 6 53 . . . . . . . 5 . 1 Total Damage 791 | . . 89 478 . . . . . . . 224 . . Kills 8 | . . 2 5 . . . . . . . 1 . . Allies Corrupted . | . . . . . . . . . . . . . . Allies Melted . | . . . . . . . . . . . . . . Intel | -11 -10 -10 -9 -9 -9 -9 -7 -7 -7 -6 -6 -6 -6 ------- Run | Scr Mat Min Mat Sto Gar Rec Fac Gar Fac Fac Gar Fac Gar Robot Analysis Total . | . . . . . . . . . . . . . . Derelict Logs Recovered 2 | . . 2 . . . . . . . . . . . Drone Launches . | . . . . . . . . . . . . . . Drone Recoveries . | . . . . . . . . . . . . . . Exploration | -11 -10 -10 -9 -9 -9 -9 -7 -7 -7 -6 -6 -6 -6 ------------- Run | Scr Mat Min Mat Sto Gar Rec Fac Gar Fac Fac Gar Fac Gar Turns Passed 4706 | 76 97 446 327 236 583 564 161 268 444 139 382 532 451 Spaces Moved 2873 | 44 71 355 224 114 314 390 129 149 318 113 189 268 195 Core 12 | 7 . . . . . . . . . . 1 . 4 Treads 17 | . . . . 16 . . . . . . 1 . . Legs 1929 | 37 71 355 220 98 314 390 43 . 3 . 1 206 191 Wheels 915 | . . . 4 . . . 86 149 315 113 186 62 . Hover . | . . . . . . . . . . . . . . Flight . | . . . . . . . . . . . . . . Fastest Speed 50 | 50 120 120 100 120 120 120 100 100 100 100 100 120 50 Average Speed 123 | 131 120 120 119 128 120 120 119 105 112 106 111 173 132 Slowest Speed 600 | 190 120 120 120 190 120 120 190 115 190 115 600 190 260 Overloaded Moves . | . . . . . . . . . . . . . . Propulsion Burnouts . | . . . . . . . . . . . . . . Robots Hopped . | . . . . . . . . . . . . . . Cave-ins Triggered . | . . . . . . . . . . . . . . Exploration Rate (%) 29 | 3 19 78 20 23 44 93 3 40 9 4 47 7 26 Regions Visited 13 Branch Regions 3 Pre-discovered Areas 1 | . . 1 . . . . . . . . . . . Known Exits Taken 7 | . 1 1 1 1 . . 1 . . 1 . 1 . Unknown Exits Taken 3 | 1 . . . . . 1 . . 1 . . . . Scrap Searched 2 | . . 2 . . . . . . . . . . . Spaces Dug . | . . . . . . . . . . . . . . Terrain Destroyed 17 | . . . . . . . . . . . 6 6 5 Melee . | . . . . . . . . . . . . . . Projectile 6 | . . . . . . . . . . . . 6 . AOE 10 | . . . . . . . . . . . 5 . 5 Terrain Rammed . | . . . . . . . . . . . . . . Walls Destroyed . | . . . . . . . . . . . . . . Machines Disabled . | . . . . . . . . . . . . . . Actions | -11 -10 -10 -9 -9 -9 -9 -7 -7 -7 -6 -6 -6 -6 --------- Run | Scr Mat Min Mat Sto Gar Rec Fac Gar Fac Fac Gar Fac Gar Total 3516 | 59 76 369 256 160 409 438 134 203 376 134 288 304 310 Wait 82 | 2 . 3 5 . 3 17 1 1 20 . 11 1 18 Move 2857 | 43 70 354 223 113 312 389 128 147 317 112 187 267 195 Hop . | . . . . . . . . . . . . . . Pick Up 52 | 7 2 4 4 4 4 . 1 2 7 3 5 5 4 Fast Attach 47 | 5 1 . 2 3 2 . 3 6 3 4 2 4 12 Attach 28 | 1 . . 2 2 1 . . 3 3 3 2 4 7 Detach 4 | . . . 1 . . . 1 . . 1 . . 1 Swap 46 | 1 . . 1 6 8 1 . 6 3 3 12 1 4 Drop 61 | . . 4 4 8 11 . . 7 6 8 5 1 7 Fire 276 | . 3 4 14 23 57 23 . 31 15 . 38 20 48 Melee 5 | . . . . . . . . . 2 . 2 . 1 Ram . | . . . . . . . . . . . . . . Kick 9 | . . . . . . 8 . . . . . 1 . Crush 1 | . . . . 1 . . . . . . . . . Escape Stasis 45 | . . . . . 8 . . . . . 24 . 13 Rewire 3 | . . . . . 3 . . . . . . . . Trap . | . . . . . . . . . . . . . . Miscellaneous . | . . . . . . . . . . . . . . Route ------- -11/Scrapyard -10/Materials -10/Mines -9/Materials -9/Storage -9/Garrison (discovered 2 exits: *Rec x2) -9/Recycling -7/Factory -7/Garrison -7/Factory -6/Factory -6/Garrison -6/Factory -6/Garrison History --------- Turn | Location | Event 39 | -11/Scrapyard | Discovered new exit (range 16) 77 | -11/Scrapyard | Entered Materials 133 | -10/Materials | Discovered new exit (range 15) 156 | -10/Materials | Identified exit to Mines 174 | -10/Materials | Entered Mines 178 | -10/Mines | Met a Derelict bent on vengeance 293 | -10/Mines | Assisted by bots powering up and referring to "LRC-V3" 310 | -10/Mines | Learned location of Mines (-8) 317 | -10/Mines | Build established: Mutant 401 | -10/Mines | Found a hidden stash of uninstalled traps 451 | -10/Mines | Learned 2 Materials zone layouts 606 | -10/Mines | Discovered new exit (range 9) 615 | -10/Mines | Identified exit to Materials 620 | -10/Mines | Entered Materials 620 | -9/Materials | Accompanied by 3 allies 620 | -9/Materials | Evolved 2 slots: Propulsion x1, Utility x1 725 | -9/Materials | Discovered new exit (range 11) 778 | -9/Materials | Identified exit to Storage 947 | -9/Materials | Entered Storage 1024 | -9/Storage | Garrison activated, responded to threat 1182 | -9/Storage | Identified exit to Garrison 1183 | -9/Storage | Entered Garrison 1234 | -9/Garrison | Triggered checkpoint 1354 | -9/Garrison | Triggered checkpoint 1408 | -9/Garrison | Build established: Scavenger-Mutant 1519 | -9/Garrison | Discovered new exit (range 11) 1526 | -9/Garrison | Destroyed 7 combat bots 1606 | -9/Garrison | Discovered new exit (range 8) 1622 | -9/Garrison | Installed Relay Interface Framework 1662 | -9/Garrison | Triggered checkpoint 1710 | -9/Garrison | Garrison Relay disabled 1766 | -9/Garrison | Entered Recycling 1800 | -9/Recycling | Spotter reported a threat 1822 | -9/Recycling | Spotter reported a threat 1839 | -9/Recycling | Spotter reported a threat 1856 | -9/Recycling | Spotter reported a threat 1869 | -9/Recycling | Spotter reported a threat 1876 | -9/Recycling | Spotter reported a threat 1878 | -9/Recycling | Spotter reported a threat 1922 | -9/Recycling | Spotter reported a threat 1929 | -9/Recycling | Spotter reported a threat 1984 | -9/Recycling | Spotter reported a threat 2018 | -9/Recycling | Spotter reported a threat 2062 | -9/Recycling | Spotter reported a threat 2065 | -9/Recycling | Spotter reported a threat 2118 | -9/Recycling | Spotter reported a threat 2171 | -9/Recycling | Spotter reported a threat 2224 | -9/Recycling | Spotter reported a threat 2228 | -9/Recycling | Spotter reported a threat 2228 | -9/Recycling | Spotter reported a threat 2233 | -9/Recycling | Spotter reported a threat 2300 | -9/Recycling | Spotter reported a threat 2322 | -9/Recycling | Discovered new exit (range 8) 2330 | -9/Recycling | Entered Factory 2330 | -7/Factory | Evolved 4 slots: Propulsion x1, Utility x2, Weapon x1 2441 | -7/Factory | Identified exit to Garrison 2491 | -7/Factory | Entered Garrison 2514 | -7/Garrison | Triggered checkpoint 2550 | -7/Garrison | Garrison Relay disabled 2666 | -7/Garrison | Triggered checkpoint 2666 | -7/Garrison | Triggered checkpoint 2712 | -7/Garrison | Destroyed 9 combat bots 2718 | -7/Garrison | Lost 3 parts (1p1u1w) 2735 | -7/Garrison | Discovered new exit (range 13) 2753 | -7/Garrison | Expanded RIF knowledge: Command Fork 2759 | -7/Garrison | Entered Factory 2908 | -7/Factory | Build established: Scavenger-Gunner 3021 | -7/Factory | Lost 3 parts (3n) 3159 | -7/Factory | Search patrols dispatched 3190 | -7/Factory | Discovered new exit (range 12) 3203 | -7/Factory | Entered another Factory area 3203 | -6/Factory | Evolved 2 slots: Utility x2 3331 | -6/Factory | Identified exit to Garrison 3342 | -6/Factory | Entered Garrison 3368 | -6/Garrison | Triggered checkpoint 3402 | -6/Garrison | Garrison Relay disabled 3438 | -6/Garrison | Triggered checkpoint 3443 | -6/Garrison | Triggered checkpoint 3447 | -6/Garrison | Spotted B-75 Beast 3520 | -6/Garrison | Destroyed 8 combat bots 3597 | -6/Garrison | Destroyed B-75 Beast 3656 | -6/Garrison | Spotted B-75 Beast 3658 | -6/Garrison | Discovered new exit (range 14) 3724 | -6/Garrison | Entered Factory 3753 | -6/Factory | Lost 4 parts (1p3n) 4132 | -6/Factory | Build established: Scavenger-Mutant 4247 | -6/Factory | Identified exit to Garrison 4256 | -6/Factory | Entered Garrison 4278 | -6/Garrison | Triggered checkpoint 4314 | -6/Garrison | Lost 3 parts (2n1w) 4322 | -6/Garrison | Garrison Relay disabled 4398 | -6/Garrison | Core integrity fell below 50% 4453 | -6/Garrison | Lost 4 parts (2n1u1w) 4555 | -6/Garrison | Spotted B-75 Beast 4629 | -6/Garrison | Lost 5 parts (1p2n1u1w) 4670 | -6/Garrison | Triggered checkpoint 4702 | -6/Garrison | Core integrity fell below 20% 4707 | -6/Garrison | Destroyed by B-75 Beast with Heavy Machine Gun Last Messages --------------- 04693_ S-27 Virus destroyed. 04693_ G-50 Soldier destroyed. 04693_ Rocket Launcher destroyed. 04693_ Destroyed Rocket Launcher. 04694_ Carbon-fiber Leg destroyed. 04694_ Ion Cannon destroyed. 04694_ Relay Coupler [Swarmer] destroyed. 04697_ Thermic Laser destroyed. 04698_ Knocked back. 04699_ Acquired 8 matter. 04699_ Dropped Imp. Deuterium Engine. 04700_ Acquired VTOL Module. 04701_ VTOL Module destroyed. 04701_ Datajack destroyed. 04702_ Overheating: Energy bleed (-11). 04703_ Acquired Autogun. 04704_ Knocked back. 04707_ G-50 Soldier destroyed. 04707_ Autogun destroyed. 04707_ Knocked back. Map ----- +----------------------------------------------------+ | ?????????????????????????????????????????????????? | | ?????????????????????????????????????????????????? | | ?????????????????????????????????????????????????? | | ?????????????????????????????????????????????????? | | ?????????????????????????????????????????????????? | | ?????????????????????????????????????????????????? | | ????????######???????????????????????????????????? | | ????????# #???????????????????????????????????? | | ????????# #???????????????????????????????????? | | ????????# #???????????????????????????????????? | | ????????### #???????????????????????????????????? | | ??????????# #???????????????????????????????????? | | ??????????# #???????????????????????????????????? | | ??????????# #???????????????????????????????????? | | ????####### #???????????????????????????????????? | | ????# ##############??????????????????????? | | ????# #####^" %% #??????????????????????? | | ????# #???#"% % %% %% #??????????????????????? | | ????# #???############## #??????????????????????? | | ????# #????????????????# #??????????????????????? | | ??### #????????????????# #??????????????????????? | | ??#%* #????????????????# #??????????????????????? | | ??# % #????????????????# #??????????????????????? | | ??# %#????????????????# #?#####????????????????? | | ??### #????????????????# ## #????????????????? | | ????#]###?????????????##*@ # ## ##???????????? | | ????# #"#?????????????# =%= #???????????? | | ????#^ "#?????????????#% % % s ??????? | | ????# #?????????????# =BB ??????? | | ????# "#?????????????# % BB ## ####????????? | | ????###"#?????????????# #??? #???????????? | | ???????##?????????????" ^ ???????????????? | | ??????????????????????" ?????????????? | | ??????????????????????" ^ ????????????? | | ??????????????????????" "???????????? | | ??????????????????????# ## ## #???????????? | | ??????????????????????# #? #? #???????????? | | ?????????????????????? ? ?? #???????????? | | ?????????????????????? ? ?? #???????????? | | ?????????????????????## ? ???????????????? | | ??????????????????????##+##?""""##???????????????? | | ?????????????????????????????????????????????????? | | ?????????????????????????????????????????????????? | | ?????????????????????????????????????????????????? | | ?????????????????????????????????????????????????? | | ?????????????????????????????????????????????????? | | ?????????????????????????????????????????????????? | | ?????????????????????????????????????????????????? | | ?????????????????????????????????????????????????? | | ?????????????????????????????????????????????????? | +----------------------------------------------------+ Best States ------------- Heat Dissipation 75 Coolant Potential 65 Energy Generation 18 Energy Capacity 310 Matter Stores 300 Matter Capacity 300 Sight Range 16 Robot Scan Range 15 Terrain Scan Density 210 Armor Coverage 225 Utility Shielding 33 Weapon Cycling 15 Evasion (%) 55 Targeting Accuracy 6 Recoil Reduction 2 Relay Coupler Types 3 Relay Coupler Value 63 Item Schematics ----------------- None Robot Schematics ------------------ None Fabricated ------------ Nothing Alien Tech Used ----------------- None Achievements -------------- None Challenges ------------ None Game ------ Seed StealthMachineJammer Manual? 0 Play Time 01:14:24 Cumulative 70.4 hours Start 2022.03.20 @ 12:06:18 End 2022.03.20 @ 13:22:26 Sessions 1 Manual Loads 0 Difficulty Rogue Special Mode None Game No. 65 Rogue 56 Adventurer 6 Explorer 3 Win Type - Total 1 Types 1/0/0/0/0/0/0/0/0 Lore% 54 Gallery% 59 Achievement% 42 Wizard Run 0 Options --------- ASCII 0 Keyboard 0 Movement Numpad Keybinds 0 Fullscreen 1 Font 12/Fuzzy Map View 83x54 Tactical HUD 1 Map Filters NONE Filters NONE Steam 1 RUN: b098ffbd-8f17-4469-905e-04572bb7f2c1